bitfinex/quotes_ETHUSD_20250620
["timestamp","ask_amount","ask_price","bid_price","bid_amount"]
[1750395346403,0.0564,2507.1,2506.9,3.98891457]
[1750395346696,6.5704,2507.0,2506.9,3.98891457]
[1750395348963,6.514,2507.0,2506.9,3.98891457]
[1750395349293,10.0,2507.2,2507.1,3.98867217]
[1750395349509,18.202,2507.2,2507.1,3.98867217]
[1750395349984,18.2584,2507.2,2507.1,3.98867217]
[1750395354593,18.202,2507.2,2507.1,3.98867217]
[1750395355279,11.688,2507.2,2507.1,3.98867217]
[1750395355592,18.202,2507.2,2507.1,4.87687217]
[1750395355982,18.202,2507.2,2507.1,4.81817217]
[1750395356567,18.202,2507.2,2507.1,4.87687217]
[1750395357390,18.202,2507.2,2507.1,4.81817217]
[1750395357990,11.688,2507.2,2507.1,4.81817217]
[1750395358196,18.202,2507.2,2507.1,4.87687217]
[1750395358705,10.0,2507.2,2507.1,4.81817217]
[1750395358907,16.514,2507.2,2507.1,4.87687217]
[1750395359204,1.689,2507.3,2507.2,3.98851308]
[1750395359422,11.689,2507.3,2507.2,4.04721308]
[1750395359562,18.203,2507.3,2507.2,4.04721308]
[1750395362736,1.689,2507.3,2507.2,4.85011308]
[1750395363011,1.689,2507.3,2507.2,4.88999046]
[1750395363216,1.689,2507.3,2507.2,6.26539273]
[1750395363715,9.579,2507.9,2507.8,3.98755881]
[1750395363871,28.15001237,2507.9,2507.8,3.98755881]
[1750395364305,28.21211114,2507.9,2507.8,3.98755881]
[1750395364805,28.21210739,2507.9,2507.8,3.98755881]
[1750395365110,10.0621,2507.8,2507.7,3.98760983]
[1750395365318,23.91580693,2507.8,2507.6,3.98781979]
[1750395365481,0.43110739,2507.7,2507.6,3.98781979]
[1750395365684,0.43132235,2507.7,2507.6,3.98781979]
[1750395366390,0.43132235,2507.7,2507.5,3.98803589]
[1750395366391,0.43132235,2507.7,2507.5,3.98797084]
[1750395366563,0.0621,2507.5,2507.4,3.98810017]
[1750395366770,0.0621,2507.4,2507.3,3.98833022]
[1750395367108,15.23579954,2507.4,2507.3,3.98833022]
[1750395367807,15.60512758,2507.4,2507.3,3.98833022]
[1750395368506,15.60513041,2507.4,2507.3,3.98833022]
[1750395368717,15.60513057,2507.4,2507.3,3.98833022]
[1750395369272,0.0621,2507.3,2507.2,3.98849151]
[1750395369709,0.4314116,2507.3,2507.2,3.98849151]
[1750395370106,0.43168028,2507.3,2507.2,3.98849151]
[1750395370310,0.43168028,2507.3,2507.1,3.98858054]
[1750395370311,0.0621,2507.2,2507.1,3.98858054]
[1750395370514,0.0621,2507.1,2507.0,3.9887705]
[1750395372279,13.54579954,2507.2,2507.1,3.98867217]
[1750395372475,13.91537398,2507.2,2507.1,3.98867217]
[1750395372891,13.54579954,2507.2,2507.1,3.98867217]
[1750395373121,13.91533316,2507.2,2507.1,3.98867217]
[1750395373714,13.91533279,2507.2,2507.1,3.98867217]
[1750395373913,13.91536793,2507.2,2507.1,3.98867217]
[1750395374118,13.54579954,2507.2,2507.1,3.98867217]
[1750395374413,13.91536821,2507.2,2507.1,3.98867217]
[1750395375680,13.91532839,2507.2,2507.1,3.98867217]
[1750395375881,13.91532834,2507.2,2507.1,3.98867217]
[1750395376412,13.91532875,2507.2,2507.1,3.98867217]
[1750395377027,13.85322875,2507.2,2507.1,3.98867217]
[1750395377182,13.54579954,2507.2,2507.1,3.98867217]
[1750395377386,13.91532967,2507.2,2507.1,3.98867217]
[1750395377813,13.91536397,2507.2,2507.1,3.98867217]
[1750395378802,13.9153679,2507.2,2507.1,3.98867217]
[1750395379422,0.36956914,2507.2,2507.1,3.98867217]
[1750395379586,8.56856914,2507.2,2507.1,4.79229083]
[1750395380394,8.63066914,2507.2,2507.1,3.98867217]
[1750395381727,25.60236868,2507.2,2506.7,0.8049]
[1750395381929,1.19116251,2507.1,2507.0,3.98871051]
[1750395382225,1.19116278,2507.1,2507.0,3.98871051]
[1750395383013,1.19118404,2507.1,2507.0,3.98871051]
[1750395383212,8.16285711,2507.1,2507.0,3.98871051]
[1750395384101,7.79319954,2507.1,2507.0,3.98871051]
[1750395384325,8.16286105,2507.1,2507.0,3.98871051]
[1750395384635,7.4034577,2507.1,2507.0,3.98871051]
[1750395384793,15.5403577,2507.1,2507.0,3.98871051]
[1750395385103,15.17069954,2507.1,2507.0,3.98871051]
[1750395385291,15.59875786,2507.1,2507.0,3.98871051]
[1750395385690,15.59873641,2507.1,2507.0,3.98871051]
[1750395386709,15.59871572,2507.1,2507.0,3.98871051]
[1750395386914,8.199,2507.1,2507.0,3.98871051]
[1750395387146,8.5686159,2507.1,2507.0,3.98871051]
[1750395387351,10.0,2507.2,2507.1,3.98867217]
[1750395387651,10.36961333,2507.2,2507.1,3.98867217]
[1750395387836,18.56957282,2507.2,2507.1,3.98867217]
[1750395388017,18.56957306,2507.2,2507.1,3.98867217]
[1750395388960,18.2,2507.2,2507.1,3.98867217]
[1750395389131,18.56957953,2507.2,2507.1,3.98867217]
[1750395389667,18.56953394,2507.2,2507.1,3.98867217]
[1750395389955,10.36953394,2507.2,2507.1,3.98867217]
[1750395390164,18.56853394,2507.2,2507.1,3.98867217]
[1750395390317,18.6269321,2507.2,2507.1,3.98867217]
[1750395390942,18.62693138,2507.2,2507.1,3.98867217]
[1750395391159,18.2574,2507.2,2507.1,3.98867217]
[1750395391450,18.62693258,2507.2,2507.0,3.98871716]
[1750395391617,7.39963212,2507.1,2507.0,3.98871716]
[1750395391844,7.39960218,2507.1,2507.0,3.98871716]
[1750395392150,0.42790264,2507.1,2507.0,3.98871716]
[1750395392347,7.39961652,2507.1,2507.0,3.98871716]
[1750395392645,7.39961645,2507.1,2507.0,3.98871716]
[1750395393185,7.3996138,2507.1,2507.0,3.98871716]
[1750395393487,7.39961506,2507.1,2507.0,3.98871716]
[1750395393879,7.39961635,2507.1,2507.0,3.98871716]
[1750395394083,0.36951681,2507.1,2507.0,3.98871716]
[1750395394286,10.0,2507.2,2507.1,3.98867217]
[1750395394587,18.56851952,2507.2,2507.1,3.98867217]
[1750395394971,18.199,2507.2,2507.1,3.98867217]
[1750395395170,18.56882958,2507.2,2507.1,3.98867217]
[1750395395886,18.56883482,2507.2,2507.1,3.98867217]
[1750395396249,12.05783482,2507.2,2507.1,3.98867217]
[1750395396457,6.88083482,2507.2,2507.1,5.41134454]
[1750395396763,6.511,2507.2,2507.1,5.34984454]
[1750395396945,6.511,2507.2,2507.1,5.41134454]
[1750395398290,1.688,2507.5,2507.4,3.98819494]
[1750395398464,18.56910219,2507.5,2507.4,3.98819494]
[1750395399690,18.56910046,2507.5,2507.4,3.98819494]
[1750395400257,0.37010046,2507.5,2507.4,6.03719751]
[1750395400559,1.686,2507.6,2507.5,4.04953589]
[1750395400866,8.56714514,2507.6,2507.5,4.04953589]
[1750395401066,8.56714514,2507.6,2507.5,3.98803589]
[1750395402091,0.36982047,2507.6,2507.5,3.98803589]
[1750395402403,6.88082047,2507.6,2507.5,3.98803589]
[1750395402605,6.88081717,2507.6,2507.5,3.98803589]
[1750395403992,6.87981717,2507.6,2507.5,3.98803589]
[1750395404194,6.51,2507.6,2507.5,3.98803589]
[1750395404397,1.686,2507.7,2507.6,3.98787685]
[1750395404696,18.56561746,2507.7,2507.6,3.98787685]
[1750395405006,11.265,2507.9,2507.8,4.04905881]
[1750395405153,17.775,2507.9,2507.8,4.04905881]
[1750395406090,11.265,2507.9,2507.8,4.04905881]
[1750395406291,17.775,2507.9,2507.8,4.04905881]
[1750395407101,10.0,2508.3,2508.2,3.98692289]
[1750395407284,18.56466195,2508.3,2508.2,3.98692289]
[1750395407778,18.56460883,2508.3,2508.2,3.98692289]
[1750395407978,0.8297,2508.2,2508.0,3.98711959]
[1750395408216,23.53909954,2508.1,2508.0,3.98711959]
[1750395408584,23.90832533,2508.1,2508.0,3.98711959]
[1750395409121,16.87822579,2508.1,2508.0,3.98711959]
[1750395410327,16.87822794,2508.1,2508.0,3.98711959]
[1750395411202,23.8497039,2508.1,2508.0,3.98711959]
[1750395411401,23.9081039,2508.1,2508.0,3.98711959]
[1750395411616,23.90810299,2508.1,2508.0,3.98711959]
[1750395411925,23.90810145,2508.1,2508.0,3.98711959]
[1750395412604,23.90810151,2508.1,2508.0,3.98711959]
[1750395413189,23.53909954,2508.1,2508.0,3.98711959]
[1750395414491,23.48069954,2508.1,2508.0,3.98711959]
[1750395414917,16.509,2508.1,2508.0,3.98711959]
[1750395415431,10.0,2508.1,2508.0,3.98711959]
[1750395415641,18.194,2508.1,2508.0,3.98711959]
[1750395417709,11.686,2508.1,2508.0,3.98711959]
[1750395418218,18.193,2508.1,2508.0,3.98711959]
[1750395418595,1.686,2508.1,2508.0,4.93418794]
[1750395418990,1.686,2508.1,2508.0,5.74635358]
[1750395419294,1.686,2508.7,2508.6,3.98628717]
[1750395419493,8.2541,2508.7,2508.6,3.98628717]
[1750395419717,18.2541,2508.7,2508.6,3.98628717]
[1750395421235,18.193,2508.7,2508.6,3.98628717]
[1750395421640,18.2541,2508.7,2508.6,3.98628717]
[1750395422234,18.193,2508.7,2508.6,3.98628717]
[1750395422432,25.22579954,2508.7,2508.6,3.98628717]
[1750395422637,25.59487331,2508.7,2508.6,3.98628717]
[1750395423046,25.59487331,2508.7,2508.5,3.98633416]
[1750395423047,10.8471,2508.6,2508.5,3.98633416]
[1750395424638,10.0611,2508.6,2508.5,3.98633416]
[1750395425005,10.43040261,2508.6,2508.5,3.98633416]
[1750395425440,10.43037751,2508.6,2508.5,3.98633416]
[1750395425647,10.0611,2508.6,2508.5,3.98633416]
[1750395426752,10.43035936,2508.6,2508.5,3.98633416]
[1750395427451,10.36925936,2508.6,2508.5,3.98633416]
[1750395427663,10.36927163,2508.6,2508.5,3.98633416]
[1750395428072,10.43037163,2508.6,2508.5,3.98633416]
[1750395428367,10.0611,2508.6,2508.5,3.98633416]
[1750395428568,10.43057522,2508.6,2508.5,3.98633416]
[1750395429232,10.43057297,2508.6,2508.5,3.98633416]
[1750395429413,10.43057329,2508.6,2508.5,3.98633416]
[1750395429618,10.0611,2508.6,2508.5,3.98633416]
[1750395429920,10.43057726,2508.6,2508.5,3.98633416]
[1750395430217,10.43057655,2508.6,2508.5,3.98633416]
[1750395430450,10.43057507,2508.6,2508.5,3.98633416]
[1750395430660,10.43056963,2508.6,2508.5,3.98633416]
[1750395432054,10.43065768,2508.6,2508.5,3.98633416]
[1750395432420,10.0611,2508.6,2508.5,3.98633416]
[1750395432621,10.43065849,2508.6,2508.5,3.98633416]
[1750395433154,10.43065945,2508.6,2508.5,3.98633416]
[1750395433360,10.0611,2508.6,2508.5,3.98633416]
[1750395433659,10.43065759,2508.6,2508.5,3.98633416]
[1750395433887,10.43065773,2508.6,2508.5,3.98633416]
[1750395434024,10.0611,2508.6,2508.5,3.98633416]
[1750395434651,10.43084591,2508.6,2508.5,3.98633416]
[1750395434858,13.07250046,2508.6,2508.5,3.98633416]
[1750395435053,12.70275455,2508.6,2508.5,3.98633416]
[1750395435268,13.07250096,2508.6,2508.5,3.98633416]
[1750395435422,13.07250161,2508.6,2508.5,3.98633416]
[1750395437433,13.0725014,2508.6,2508.5,3.98633416]
[1750395437748,13.0114014,2508.6,2508.4,3.98649366]
[1750395437948,0.879,2508.4,2508.3,3.98667491]
[1750395438128,8.22048265,2508.4,2508.3,3.98667491]
[1750395438539,8.22050099,2508.4,2508.3,3.98667491]
[1750395439832,8.22050279,2508.4,2508.3,3.98667491]
[1750395440563,8.22050301,2508.4,2508.3,3.98667491]
[1750395440784,8.22053389,2508.4,2508.3,3.98667491]
[1750395440984,8.22057752,2508.4,2508.3,3.98667491]
[1750395441387,8.22057754,2508.4,2508.3,3.98667491]
[1750395441786,7.85069954,2508.4,2508.3,3.98667491]
[1750395443086,8.22056711,2508.4,2508.3,3.98667491]
[1750395443589,8.22064345,2508.4,2508.3,3.98667491]
[1750395444887,8.2206758,2508.4,2508.3,3.98667491]
[1750395445387,7.4027758,2508.4,2508.3,3.98667491]
[1750395446930,7.4027758,2508.4,2508.0,3.98715892]
[1750395446931,0.8247,2508.3,2508.0,3.98715892]
[1750395447090,8.61617626,2508.2,2508.0,3.98715892]
[1750395447387,7.3998758,2508.1,2508.0,3.98715892]
[1750395447584,7.02989954,2508.1,2508.0,3.98715892]
[1750395447776,7.39986727,2508.1,2508.0,3.98715892]
[1750395448176,7.39988326,2508.1,2508.0,3.98715892]
[1750395448495,7.39988716,2508.1,2508.0,3.98715892]
[1750395449891,0.0582,2508.0,2507.9,3.98732071]
[1750395450093,6.93118762,2508.0,2507.9,3.98732071]
[1750395450473,0.0582,2507.9,2507.7,3.98757484]
[1750395450685,13.84475755,2507.8,2507.7,3.98760074]
[1750395450873,13.90295755,2507.8,2507.7,3.98760074]
[1750395451083,13.90293369,2507.8,2507.7,3.98760074]
[1750395453307,6.93122197,2507.8,2507.7,3.98760074]
[1750395453481,6.93122271,2507.8,2507.7,3.98760074]
[1750395454712,6.93042978,2507.8,2507.7,3.98760074]
[1750395455201,6.93037999,2507.8,2507.7,3.98760074]
[1750395455403,6.87217999,2507.8,2507.6,3.98779908]
[1750395455593,1.7422,2507.7,2507.6,3.98779908]
[1750395457187,1.684,2507.7,2507.6,3.98779908]
[1750395459776,1.684,2507.7,2507.6,4.79999908]
[1750395459976,1.684,2507.7,2507.6,5.68474565]
[1750395463220,8.187,2507.7,2507.6,5.68474565]
[1750395465423,8.185,2507.9,2507.8,4.04705881]
[1750395465622,1.682,2507.9,2507.8,4.04705881]
[1750395465827,8.185,2507.9,2507.8,4.91462994]
[1750395466118,8.185,2507.9,2507.8,5.85346824]
[1750395466317,1.682,2507.9,2507.8,5.85346824]
[1750395466523,8.185,2507.9,2507.8,5.85346824]
[1750395467803,8.185,2507.9,2507.8,5.79396824]
[1750395468621,1.682,2507.9,2507.8,5.85346824]
[1750395469294,1.682,2507.9,2507.8,5.89333986]
[1750395469494,1.682,2507.9,2507.8,5.85346824]
[1750395470095,1.682,2507.9,2507.8,5.79396824]
[1750395470413,1.682,2507.9,2507.8,3.98755881]
[1750395471305,2.05150697,2507.9,2507.8,3.98755881]
[1750395471508,1.682,2507.9,2507.8,3.98755881]
[1750395472895,2.05155366,2507.9,2507.8,3.98755881]
[1750395473094,2.11275366,2507.9,2507.8,3.98755881]
[1750395473293,2.11275551,2507.9,2507.8,3.98755881]
[1750395475329,1.7432,2507.9,2507.8,3.98755881]
[1750395475829,2.1131537,2507.9,2507.8,3.98755881]
[1750395476331,2.1131535,2507.9,2507.8,3.98755881]
[1750395477434,9.08485304,2507.9,2507.8,3.98755881]
[1750395478519,9.08492156,2507.9,2507.8,3.98755881]
[1750395478720,2.05202202,2507.9,2507.8,3.98755881]
[1750395479062,2.1132392,2507.9,2507.8,3.98755881]
[1750395479451,0.0612,2507.8,2507.4,0.8088]
[1750395479757,7.75823323,2507.7,2507.6,3.98776337]
[1750395480257,7.75823323,2507.7,2507.5,3.98800467]
[1750395480469,0.43123323,2507.6,2507.5,3.98800467]
[1750395481221,0.0612,2507.6,2507.5,3.98800467]
[1750395481422,0.43113342,2507.6,2507.5,3.98800467]
[1750395481875,10.36993342,2507.6,2507.4,3.98813705]
[1750395482166,0.0612,2507.3,2507.2,3.98850565]
[1750395482368,15.58548685,2507.3,2507.2,3.98850565]
[1750395483358,8.55258731,2507.3,2507.2,3.98850565]
[1750395484118,8.183,2507.3,2507.2,3.98850565]
[1750395484361,8.183,2507.3,2507.2,4.8719614]
[1750395484827,8.183,2507.3,2507.2,3.98850565]
[1750395488262,8.2442,2507.3,2507.2,3.98850565]
[1750395488657,8.183,2507.3,2507.2,3.98850565]
[1750395490963,8.2442,2507.3,2507.2,3.98850565]
[1750395498474,15.21589954,2507.3,2507.2,3.98850565]
[1750395502279,16.81710949,2507.3,2507.2,3.98850565]
[1750395502684,17.18630121,2507.3,2507.2,3.98850565]
[1750395503455,17.18629937,2507.3,2507.2,3.98850565]
[1750395503643,17.18629504,2507.3,2507.2,3.98850565]
[1750395504452,17.18626642,2507.3,2507.2,3.98850565]
[1750395504658,8.55029158,2507.3,2507.1,3.98866458]
[1750395504858,8.181,2507.3,2507.1,3.98866458]
[1750395505058,8.181,2507.3,2507.2,3.98851308]
[1750395505261,8.5502859,2507.3,2507.2,3.98851308]
[1750395505541,8.181,2507.3,2507.2,3.98851308]
[1750395505744,8.55028658,2507.3,2507.2,3.98851308]
[1750395506475,8.55028035,2507.3,2507.2,3.98851308]
[1750395506978,8.55048816,2507.3,2507.2,3.98851308]
[1750395507471,0.36948816,2507.3,2507.2,3.98851308]
[1750395507771,8.55048816,2507.3,2507.2,3.98851308]
[1750395508074,8.55046123,2507.3,2507.2,3.98851308]
[1750395509339,8.55081106,2507.3,2507.2,3.98851308]
[1750395512474,8.54981106,2507.3,2507.2,3.98851308]
[1750395512875,2.05081106,2507.3,2507.2,3.98851308]
[1750395513096,8.54981106,2507.3,2507.2,4.04501308]
[1750395513241,8.54981106,2507.3,2507.2,3.98851308]
[1750395514377,8.18,2507.3,2507.2,3.98851308]
[1750395514680,8.55012883,2507.3,2507.2,3.98851308]
[1750395514877,8.5501266,2507.3,2507.2,3.98851308]
[1750395515058,8.55009522,2507.3,2507.2,3.98851308]
[1750395516290,8.55010622,2507.3,2507.2,3.98851308]
[1750395516969,8.60829351,2507.3,2507.2,3.98851308]
[1750395517678,8.60831164,2507.3,2507.2,3.98851308]
[1750395518266,8.6083137,2507.3,2507.2,3.98851308]
[1750395519391,8.60830099,2507.3,2507.2,3.98851308]
[1750395520889,8.60829964,2507.3,2507.2,3.98851308]
[1750395522117,8.60827295,2507.3,2507.2,3.98851308]
[1750395522655,8.2382,2507.3,2507.2,3.98851308]
[1750395522950,8.60827104,2507.3,2507.2,3.98851308]
[1750395523392,8.60826531,2507.3,2507.2,3.98851308]
[1750395523798,8.6082726,2507.3,2507.2,3.98851308]
[1750395525105,8.60826458,2507.3,2507.2,3.98851308]
[1750395525278,8.55006458,2507.3,2507.2,3.98851308]
[1750395525476,8.55006458,2507.3,2507.2,4.75761308]
[1750395525678,8.54906458,2507.3,2507.2,4.75761308]
[1750395526202,8.179,2507.3,2507.2,4.75761308]
[1750395526558,8.54907055,2507.3,2507.2,3.98851308]
[1750395526758,8.179,2507.3,2507.2,3.98851308]
[1750395527003,8.5490653,2507.3,2507.2,3.98851308]
[1750395527174,8.54906437,2507.3,2507.2,3.98851308]
[1750395528265,8.54906919,2507.3,2507.2,3.98851308]
[1750395528665,8.179,2507.3,2507.2,3.98851308]
[1750395528863,8.54906405,2507.3,2507.2,3.98851308]
[1750395529175,8.60725144,2507.3,2507.2,3.98851308]
[1750395529901,8.60726006,2507.3,2507.2,3.98851308]
[1750395530102,8.2372,2507.3,2507.2,3.98851308]
[1750395530466,8.60726351,2507.3,2507.2,3.98851308]
[1750395531900,8.60725733,2507.3,2507.2,3.98851308]
[1750395532597,8.60726421,2507.3,2507.2,3.98851308]
[1750395532797,8.2372,2507.3,2507.2,3.98851308]
[1750395533003,8.6072643,2507.3,2507.2,3.98851308]
[1750395534676,8.5490643,2507.3,2507.2,3.98851308]
[1750395535279,0.3700643,2507.3,2507.2,4.74791308]
[1750395535479,0.3700643,2507.3,2507.2,5.72315441]
[1750395535683,1.679,2507.7,2507.6,4.04957685]
[1750395535908,8.54511207,2507.7,2507.6,4.04957685]
[1750395536104,2.04911207,2507.7,2507.6,4.04957685]
[1750395536305,8.54511207,2507.7,2507.6,4.92927471]
[1750395536684,9.579,2508.0,2507.9,3.98739981]
[1750395536989,1.679,2508.1,2508.0,3.98724082]
[1750395537188,1.679,2508.1,2508.0,4.04894082]
[1750395537395,1.679,2508.1,2508.0,5.32726731]
[1750395539296,1.679,2508.1,2508.0,3.98724082]
[1750395539986,8.71029954,2508.1,2508.0,3.98724082]
[1750395540817,1.7386,2508.1,2508.0,3.98724082]
[1750395543525,1.679,2508.1,2508.0,3.98724082]
[1750395543924,1.679,2508.1,2508.0,4.80754082]
[1750395544224,1.679,2508.1,2508.0,5.74873163]
[1750395545226,0.7589,2508.7,2508.0,5.78859861]
[1750395545426,0.3685628,2508.7,2508.6,3.98628717]
[1750395545722,18.172,2508.7,2508.6,3.98628717]
[1750395545937,18.54055832,2508.7,2508.6,3.98628717]
[1750395546305,18.60015832,2508.7,2508.6,3.98628717]
[1750395546507,18.2316,2508.7,2508.6,3.98628717]
[1750395552557,21.78933995,2508.7,2508.6,3.98628717]
[1750395553527,18.172,2508.7,2508.6,3.98628717]
[1750395553728,18.2316,2508.7,2508.6,3.98628717]
[1750395554945,18.2296,2508.7,2508.6,3.98628717]
[1750395555410,18.17,2508.7,2508.5,3.98635835]
[1750395555609,17.03129954,2508.6,2508.5,3.98635835]
[1750395561368,10.0596,2508.6,2508.5,3.98635835]
[1750395561581,16.5506,2508.6,2508.5,3.98635835]
[1750395562687,16.491,2508.6,2508.5,3.98635835]
[1750395564561,16.86053101,2508.6,2508.5,3.98635835]
[1750395565392,16.86055416,2508.6,2508.5,3.98635835]
[1750395565677,16.491,2508.6,2508.5,3.98635835]
[1750395565880,16.86054996,2508.6,2508.5,3.98635835]
[1750395566389,16.8605408,2508.6,2508.5,3.98635835]
[1750395566883,10.876,2508.5,2507.9,4.81129981]
[1750395567077,0.0581,2508.2,2508.1,3.98699343]
[1750395567305,15.56534034,2508.2,2508.1,3.98699343]
[1750395568111,15.56549972,2508.2,2508.1,3.98699343]
[1750395568494,15.19579954,2508.2,2508.1,3.98699343]
[1750395568711,15.56550221,2508.2,2508.1,3.98699343]
[1750395568875,15.19579954,2508.2,2508.1,3.98699343]
[1750395569205,15.56549128,2508.2,2508.1,3.98699343]
[1750395569407,15.56549128,2508.2,2508.0,3.98714356]
[1750395569408,16.69424867,2508.2,2508.0,3.98714356]
[1750395569710,1.2494552,2508.1,2508.0,3.98714356]
[1750395570311,1.1913552,2508.1,2507.5,4.81340887]
[1750395570608,13.88945474,2508.0,2507.9,3.98730922]
[1750395571503,13.88949885,2508.0,2507.9,3.98730922]
[1750395573923,13.51979954,2508.0,2507.9,3.98730922]
[1750395574834,13.51979954,2508.0,2507.4,0.0608]
[1750395574835,10.0,2507.9,2507.2,1.68135853]
[1750395575133,10.0581,2507.7,2507.6,3.98777877]
[1750395575297,0.0581,2507.5,2507.4,3.98812629]
[1750395575490,16.5481,2507.5,2507.4,3.98812629]
[1750395575691,16.5481,2507.5,2507.3,3.98827209]
[1750395575899,7.02979954,2507.4,2507.3,3.98827209]
[1750395577219,0.0581,2507.4,2507.3,3.98827209]
[1750395584140,8.2231,2507.4,2507.3,3.98827209]
[1750395586335,15.19479954,2507.4,2507.3,3.98827209]
[1750395588541,15.13669954,2507.4,2506.8,0.7895]
[1750395588746,0.0581,2507.3,2507.2,3.98844207]
[1750395589941,0.0581,2507.2,2507.1,3.98859841]
[1750395590253,6.5481,2507.2,2507.1,3.98859841]
[1750395590469,13.51979954,2507.2,2507.1,3.98859841]
[1750395591018,0.0581,2507.1,2506.6,0.7571]
[1750395591367,16.97169954,2506.9,2506.5,4.20754232]
[1750395591566,8.2221,2506.8,2506.5,4.20754232]
[1750395592248,7.02979954,2506.6,2506.5,0.218054]
[1750395592428,13.51979954,2506.6,2506.5,0.218054]
[1750395592630,13.51979954,2506.6,2506.5,4.20768096]
[1750395593225,6.5481,2506.6,2506.5,4.20768096]
[1750395593439,6.49,2506.6,2506.5,4.20768096]
[1750395596819,10.0,2507.1,2506.8,3.98914951]
[1750395597025,10.0,2507.1,2506.5,1.80409151]
[1750395597026,10.0,2506.9,2506.5,5.85398655]
[1750395597396,10.0,2506.9,2506.8,3.98914951]
[1750395598004,0.057,2507.3,2507.1,3.98867217]
[1750395598298,0.42507571,2507.3,2507.2,3.98851308]
[1750395598479,18.59007571,2507.3,2507.2,3.98851308]
[1750395598650,18.59007682,2507.3,2507.2,3.98851308]
[1750395599287,8.53307682,2507.3,2507.2,3.98851308]
[1750395599486,18.59007682,2507.3,2507.2,3.98851308]
[1750395599959,18.59016077,2507.3,2507.2,3.98851308]
[1750395600158,10.36816077,2507.3,2507.2,3.98851308]
[1750395600358,12.04316077,2507.3,2507.2,3.98851308]
[1750395600756,18.53316077,2507.3,2507.2,3.98851308]
[1750395600953,0.7746,2506.9,2506.5,0.218054]
[1750395601206,10.0,2506.8,2506.7,3.98930865]
[1750395601373,10.057,2507.0,2506.8,3.98907979]
[1750395601566,10.36818602,2506.9,2506.8,3.98907979]
[1750395601880,18.199,2506.9,2506.8,3.98907979]
[1750395602955,16.524,2506.9,2506.8,3.98907979]
[1750395604495,10.0,2506.8,2506.7,4.74657018]
[1750395604994,10.0,2506.8,2506.7,3.98917018]
[1750395606189,1.675,2507.4,2506.8,0.0603]
[1750395606395,10.0,2507.2,2507.0,3.98874062]
[1750395606599,6.52,2507.1,2507.0,3.98874062]
[1750395610859,10.0,2507.2,2507.1,3.98867217]
[1750395611080,16.518,2507.2,2507.1,3.98867217]
[1750395613407,16.515,2507.2,2507.1,3.98867217]
[1750395613604,10.0,2507.2,2507.1,3.98867217]
[1750395613796,1.675,2507.4,2507.3,3.988354]
[1750395613972,6.97169954,2507.8,2507.6,3.987844]
[1750395614303,8.57057048,2507.7,2507.6,3.987844]
[1750395614476,18.62757048,2507.7,2507.6,3.987844]
[1750395615096,18.62760901,2507.7,2507.6,3.987844]
[1750395615291,0.057,2507.4,2507.0,3.98883127]
[1750395615606,6.97169954,2507.1,2507.0,3.98883127]
[1750395615900,13.49469954,2507.1,2507.0,3.98883127]
[1750395616267,13.55169954,2507.1,2507.0,3.98883127]
[1750395617003,13.49469954,2507.1,2507.0,3.98883127]
[1750395620686,6.523,2507.1,2507.0,3.98883127]
[1750395620884,16.97169954,2507.3,2507.2,3.98851308]
[1750395621125,25.54652953,2507.3,2507.2,3.98851308]
[1750395621625,25.54652688,2507.3,2507.2,3.98851308]
[1750395621926,25.54452688,2507.3,2507.2,3.98851308]
[1750395622214,0.36882734,2507.3,2507.2,3.98851308]
[1750395622425,1.688,2507.4,2507.3,3.988354]
[1750395622628,1.688,2507.6,2507.5,3.98803589]
[1750395622836,18.57485383,2507.6,2507.5,4.78163589]
[1750395622989,18.57485383,2507.6,2507.5,3.98803589]
[1750395623517,18.63575383,2507.6,2507.5,3.98803589]
[1750395623691,18.63575383,2507.6,2507.4,3.98813326]
[1750395623889,7.40138525,2507.5,2507.4,3.98819494]
[1750395624334,7.34048525,2507.5,2507.4,3.98819494]
[1750395624518,7.34055493,2507.5,2507.4,3.98819494]
[1750395624831,0.36885539,2507.5,2507.4,3.98819494]
[1750395625233,18.206,2507.6,2507.5,3.98803589]
[1750395625431,18.5748663,2507.6,2507.5,3.98803589]
[1750395625730,18.5748735,2507.6,2507.5,3.98803589]
[1750395626729,12.0568735,2507.6,2507.5,3.98803589]
[1750395626933,10.3688735,2507.6,2507.5,4.75223589]
[1750395627122,18.204,2507.6,2507.5,4.75223589]
[1750395627426,11.688,2507.6,2507.5,4.75223589]
[1750395627633,18.204,2507.6,2507.5,4.14726922]
[1750395629316,8.204,2507.6,2507.5,4.14726922]
[1750395629522,8.202,2507.6,2507.5,4.08556922]
[1750395630130,8.202,2507.6,2507.5,5.35964998]
[1750395630131,1.688,2507.6,2507.5,5.35964998]
[1750395630332,8.202,2507.6,2507.5,5.35964998]
[1750395630933,1.688,2507.6,2507.5,5.35964998]
[1750395631232,11.266,2508.0,2507.9,3.98739981]
[1750395631436,17.78,2508.0,2507.9,3.98739981]
[1750395631833,11.266,2508.0,2507.9,3.98739981]
[1750395632035,1.688,2508.0,2507.9,3.98739981]
[1750395632551,8.201,2508.0,2507.9,4.04909981]
[1750395633332,7.73589954,2508.5,2508.4,3.986605]
[1750395633541,15.99679954,2508.5,2508.4,3.986605]
[1750395633741,19.85316697,2508.5,2508.4,3.986605]
[1750395633930,26.36716839,2508.5,2508.4,3.986605]
[1750395634131,25.60296839,2508.5,2508.4,3.986605]
[1750395634853,10.36836885,2508.5,2508.4,3.986605]
[1750395635018,16.513,2508.5,2508.4,3.986605]
[1750395637257,8.65969954,2508.6,2508.5,3.98644608]
[1750395637461,25.17169954,2508.6,2508.5,3.98644608]
[1750395637627,18.65969954,2508.6,2508.5,3.98644608]
[1750395637954,18.199,2508.6,2508.5,3.98644608]
[1750395638358,11.688,2508.6,2508.5,3.98644608]
[1750395638524,8.199,2508.6,2508.5,4.04814608]
[1750395638724,8.199,2508.6,2508.5,4.79304608]
[1750395639337,1.688,2508.6,2508.5,4.79304608]
[1750395639537,8.199,2508.6,2508.5,6.13138745]
[1750395640830,8.199,2508.6,2508.5,6.06968745]
[1750395642165,8.197,2508.6,2508.5,6.06968745]
[1750395642370,1.688,2508.6,2508.5,6.13138745]
[1750395642577,8.196,2508.6,2508.5,6.13138745]
[1750395644048,21.265,2508.9,2508.8,3.98596938]
[1750395644282,11.265,2508.9,2508.8,3.98596938]
[1750395644482,17.771,2508.9,2508.8,3.98596938]
[1750395646586,11.265,2508.9,2508.8,3.98596938]
[1750395646881,17.768,2508.9,2508.8,3.98596938]
[1750395647070,8.187,2508.9,2508.8,3.98596938]